[Event "Titled Tuesday Blitz June 8 2021"]
[White "Sanal, Vahap"]
[Black "Perez Ponsa, Federico"]
[WhiteFideId "6300545"]
[BlackFideId "117927"]
[WhiteElo "2507"]
[BlackElo "2672"]
[Result "1-0"]
[Round "07"]
[TimeControl "180+1"]
[Date "2021.06.08"]
[WhiteClock "0:01:11"]
[BlackClock "0:00:39"]

1. e4 {[%clk 0:03:00]}  c5 {[%clk 0:02:57]} 2. Nf3 {[%clk 0:03:01]}  d6 {[%clk 0:02:57]} 3. d4 {[%clk 0:03:01]}  cxd4 {[%clk 0:02:57]} 4. Nxd4 {[%clk 0:03:01]}  Nf6 {[%clk 0:02:58]} 5. Nc3 {[%clk 0:03:01]}  a6 {[%clk 0:02:59]} 6. a3 {[%clk 0:03:01]}  e5 {[%clk 0:02:58]} 7. Nf5 {[%clk 0:03:01]}  d5 {[%clk 0:02:58]} 8. Bg5 {[%clk 0:03:01]}  d4 {[%clk 0:02:56]} 9. Bxf6 {[%clk 0:03:01]}  Qxf6 {[%clk 0:02:55]} 10. Nd5 {[%clk 0:03:01]}  Qc6 {[%clk 0:02:55]} 11. c4 {[%clk 0:02:59]}  Nd7 {[%clk 0:02:46]} 12. b4 {[%clk 0:02:48]}  g6 {[%clk 0:02:45]} 13. Nxd4 {[%clk 0:02:47]}  exd4 {[%clk 0:02:44]} 14. Qxd4 {[%clk 0:02:48]}  f6 {[%clk 0:02:43]} 15. c5 {[%clk 0:02:44]}  Bg7 {[%clk 0:02:37]} 16. Bc4 {[%clk 0:02:41]}  Ne5 {[%clk 0:02:36]} 17. Bb3 {[%clk 0:02:32]}  f5 {[%clk 0:02:30]} 18. O-O-O {[%clk 0:02:28]}  Be6 {[%clk 0:02:25]} 19. f4 {[%clk 0:02:26]}  a5 {[%clk 0:02:09]} 20. fxe5 {[%clk 0:02:15]}  axb4 {[%clk 0:02:07]} 21. axb4 {[%clk 0:02:06]}  Rd8 {[%clk 0:01:56]} 22. Qc3 {[%clk 0:01:44]}  fxe4 {[%clk 0:01:47]} 23. b5 {[%clk 0:01:38]}  Qxd5 {[%clk 0:00:57]} 24. Bxd5 {[%clk 0:01:37]}  Bxd5 {[%clk 0:00:58]} 25. Rhf1 {[%clk 0:01:27]}  Ke7 {[%clk 0:00:54]} 26. c6 {[%clk 0:01:19]}  bxc6 {[%clk 0:00:55]} 27. bxc6 {[%clk 0:01:19]}  Ke6 {[%clk 0:00:53]} 28. c7 {[%clk 0:01:17]}  Ra8 {[%clk 0:00:45]} 29. Qh3+ {[%clk 0:01:13]}  Kxe5 {[%clk 0:00:43]} 30. Rxd5+ {[%clk 0:01:13]}  Kxd5 {[%clk 0:00:42]} 31. Qd7+ {[%clk 0:01:12]}  Kc4 {[%clk 0:00:39]} 32. Qxg7 {[%clk 0:01:11]} 1-0


[Site "https://www.chess.com"]

[Event "Titled Tuesday Blitz June 8 2021"]
[White "Seel, Christian, Dr."]
[Black "Aitbayev, Aslan"]
[WhiteFideId "4663098"]
[BlackFideId "13704613"]
[WhiteElo "2478"]
[BlackElo "2417"]
[Result "1/2-1/2"]
[Round "07"]
[TimeControl "180+1"]
[Date "2021.06.08"]
[WhiteClock "0:00:07"]
[BlackClock "0:00:12"]

1. Nf3 {[%clk 0:03:00]}  d5 {[%clk 0:02:58]} 2. d4 {[%clk 0:02:59]}  Nf6 {[%clk 0:02:57]} 3. g3 {[%clk 0:02:58]}  Bf5 {[%clk 0:02:56]} 4. Bg2 {[%clk 0:02:58]}  e6 {[%clk 0:02:56]} 5. O-O {[%clk 0:02:59]}  Bd6 {[%clk 0:02:50]} 6. c4 {[%clk 0:02:58]}  c6 {[%clk 0:02:50]} 7. b3 {[%clk 0:02:57]}  O-O {[%clk 0:02:48]} 8. Ba3 {[%clk 0:02:55]}  Bxa3 {[%clk 0:02:44]} 9. Nxa3 {[%clk 0:02:54]}  Nbd7 {[%clk 0:02:45]} 10. Nc2 {[%clk 0:02:53]}  Ne4 {[%clk 0:02:37]} 11. Ne3 {[%clk 0:02:52]}  Bg6 {[%clk 0:02:38]} 12. Qc1 {[%clk 0:02:45]}  Qa5 {[%clk 0:02:36]} 13. a3 {[%clk 0:02:39]}  h6 {[%clk 0:02:17]} 14. b4 {[%clk 0:02:32]}  Qd8 {[%clk 0:02:17]} 15. Nd2 {[%clk 0:02:29]}  f5 {[%clk 0:02:13]} 16. f4 {[%clk 0:02:23]}  Bh5 {[%clk 0:02:09]} 17. Bf3 {[%clk 0:02:19]}  Nxd2 {[%clk 0:01:22]} 18. Qxd2 {[%clk 0:02:17]}  Nf6 {[%clk 0:01:12]} 19. cxd5 {[%clk 0:02:00]}  Bxf3 {[%clk 0:01:02]} 20. exf3 {[%clk 0:01:53]}  cxd5 {[%clk 0:00:56]} 21. Rfc1 {[%clk 0:01:49]}  Qb6 {[%clk 0:00:55]} 22. Rc5 {[%clk 0:01:45]}  Nd7 {[%clk 0:00:54]} 23. Rc2 {[%clk 0:01:41]}  Rfc8 {[%clk 0:00:43]} 24. Rac1 {[%clk 0:01:39]}  Rxc2 {[%clk 0:00:43]} 25. Rxc2 {[%clk 0:01:35]}  a5 {[%clk 0:00:43]} 26. Kf2 {[%clk 0:01:11]}  Kh7 {[%clk 0:00:36]} 27. h3 {[%clk 0:00:56]}  Qd6 {[%clk 0:00:19]} 28. Qc3 {[%clk 0:00:32]}  axb4 {[%clk 0:00:19]} 29. Qxb4 {[%clk 0:00:32]}  Qa6 {[%clk 0:00:19]} 30. Rc7 {[%clk 0:00:30]}  Nf6 {[%clk 0:00:18]} 31. Qe7 {[%clk 0:00:30]}  Ne8 {[%clk 0:00:18]} 32. Rc2 {[%clk 0:00:20]}  Qd3 {[%clk 0:00:16]} 33. Qxe6 {[%clk 0:00:18]}  g6 {[%clk 0:00:16]} 34. Qf7+ {[%clk 0:00:16]}  Ng7 {[%clk 0:00:16]} 35. h4 {[%clk 0:00:14]}  Rxa3 {[%clk 0:00:16]} 36. Re2 {[%clk 0:00:14]}  Qxd4 {[%clk 0:00:15]} 37. Qxb7 {[%clk 0:00:11]}  h5 {[%clk 0:00:14]} 38. Qf7 {[%clk 0:00:10]}  Rd3 {[%clk 0:00:15]} 39. Qb7 {[%clk 0:00:09]}  Qc5 {[%clk 0:00:15]} 40. Qf7 {[%clk 0:00:07]}  Qd4 {[%clk 0:00:13]} 41. Qc7 {[%clk 0:00:07]}  Rc3 {[%clk 0:00:13]} 42. Qf7 {[%clk 0:00:07]}  Rd3 {[%clk 0:00:12]} 1/2-1/2


[Site "https://www.chess.com"]

[Event "Titled Tuesday Blitz June 8 2021"]
[White "Solon, Nathan"]
[Black "Cardoso Cardoso, Jose Gabriel"]
[WhiteFideId "2017229"]
[BlackFideId "4430492"]
[WhiteElo "2626"]
[BlackElo "2801"]
[Result "0-1"]
[Round "07"]
[TimeControl "180+1"]
[Date "2021.06.08"]
[WhiteClock "0:01:29"]
[BlackClock "0:02:25"]

1. d4 {[%clk 0:03:00]}  Nf6 {[%clk 0:02:59]} 2. c4 {[%clk 0:03:00]}  g6 {[%clk 0:03:00]} 3. g3 {[%clk 0:03:00]}  Bg7 {[%clk 0:03:01]} 4. Bg2 {[%clk 0:03:00]}  d6 {[%clk 0:03:00]} 5. Nc3 {[%clk 0:03:00]}  O-O {[%clk 0:03:00]} 6. Nf3 {[%clk 0:03:00]}  Nc6 {[%clk 0:03:00]} 7. O-O {[%clk 0:03:00]}  Bf5 {[%clk 0:03:00]} 8. d5 {[%clk 0:02:49]}  Na5 {[%clk 0:03:00]} 9. Qa4 {[%clk 0:02:45]}  c5 {[%clk 0:03:00]} 10. dxc6 {[%clk 0:02:44]}  Nxc6 {[%clk 0:03:00]} 11. Bg5 {[%clk 0:02:34]}  h6 {[%clk 0:02:59]} 12. Bd2 {[%clk 0:02:31]}  Ne4 {[%clk 0:02:57]} 13. Nxe4 {[%clk 0:02:06]}  Bxe4 {[%clk 0:02:58]} 14. Qb3 {[%clk 0:01:59]}  Qc7 {[%clk 0:02:51]} 15. Rac1 {[%clk 0:01:55]}  Rac8 {[%clk 0:02:45]} 16. Bc3 {[%clk 0:01:37]}  Bxf3 {[%clk 0:02:32]} 17. Bxg7 {[%clk 0:01:29]}  Bxg2 {[%clk 0:02:25]} 18. Bxf8 {[%clk 0:01:29]}  Bxf1 {[%clk 0:02:25]} 0-1


[Site "https://www.chess.com"]

[Event "Titled Tuesday Blitz June 8 2021"]
[White "SpeedofLight0"]
[Black "Grieve, Harry"]
[BlackFideId "426520"]
[WhiteElo "2786"]
[BlackElo "2531"]
[Result "1-0"]
[Round "07"]
[TimeControl "180+1"]
[Date "2021.06.08"]
[WhiteClock "0:01:10"]
[BlackClock "0:00:11"]

1. Nf3 {[%clk 0:03:00]}  f5 {[%clk 0:02:59]} 2. b3 {[%clk 0:02:58]}  d6 {[%clk 0:02:58]} 3. Bb2 {[%clk 0:02:59]}  e5 {[%clk 0:02:59]} 4. e3 {[%clk 0:02:56]}  Nf6 {[%clk 0:02:58]} 5. d4 {[%clk 0:02:56]}  e4 {[%clk 0:02:58]} 6. Nfd2 {[%clk 0:02:57]}  g6 {[%clk 0:02:59]} 7. c4 {[%clk 0:02:57]}  Bg7 {[%clk 0:02:59]} 8. Nc3 {[%clk 0:02:58]}  O-O {[%clk 0:03:00]} 9. Be2 {[%clk 0:02:58]}  Nc6 {[%clk 0:02:55]} 10. a3 {[%clk 0:02:56]}  Bd7 {[%clk 0:02:54]} 11. Qc2 {[%clk 0:02:55]}  h5 {[%clk 0:02:49]} 12. h4 {[%clk 0:02:55]}  Ng4 {[%clk 0:02:47]} 13. g3 {[%clk 0:02:54]}  Qe7 {[%clk 0:02:32]} 14. Nd5 {[%clk 0:02:52]}  Qd8 {[%clk 0:02:31]} 15. Nf4 {[%clk 0:02:52]}  Ne7 {[%clk 0:02:19]} 16. Bxg4 {[%clk 0:02:41]}  hxg4 {[%clk 0:02:20]} 17. d5 {[%clk 0:02:41]}  Qe8 {[%clk 0:02:00]} 18. Bxg7 {[%clk 0:02:37]}  Kxg7 {[%clk 0:02:01]} 19. Qc3+ {[%clk 0:02:36]}  Kh7 {[%clk 0:01:59]} 20. a4 {[%clk 0:01:54]}  Qf7 {[%clk 0:01:58]} 21. a5 {[%clk 0:01:51]}  c6 {[%clk 0:01:34]} 22. Qd4 {[%clk 0:01:42]}  cxd5 {[%clk 0:01:28]} 23. cxd5 {[%clk 0:01:43]}  Rfc8 {[%clk 0:01:23]} 24. Nc4 {[%clk 0:01:42]}  Qg7 {[%clk 0:01:05]} 25. Qxg7+ {[%clk 0:01:31]}  Kxg7 {[%clk 0:01:06]} 26. Nxd6 {[%clk 0:01:31]}  Rc3 {[%clk 0:00:48]} 27. O-O {[%clk 0:01:24]}  Rxb3 {[%clk 0:00:29]} 28. Rfc1 {[%clk 0:01:23]}  Rd8 {[%clk 0:00:28]} 29. Rc7 {[%clk 0:01:22]}  Kf6 {[%clk 0:00:28]} 30. Nxb7 {[%clk 0:01:20]}  Rb8 {[%clk 0:00:23]} 31. Nc5 {[%clk 0:01:20]}  Be8 {[%clk 0:00:18]} 32. Nxb3 {[%clk 0:01:19]}  Rxb3 {[%clk 0:00:19]} 33. d6 {[%clk 0:01:18]}  Nc6 {[%clk 0:00:18]} 34. d7 {[%clk 0:01:18]}  Bxd7 {[%clk 0:00:18]} 35. Rxd7 {[%clk 0:01:19]}  Ne5 {[%clk 0:00:19]} 36. Rxa7 {[%clk 0:01:13]}  Rb2 {[%clk 0:00:14]} 37. Ra6+ {[%clk 0:01:11]}  Kf7 {[%clk 0:00:14]} 38. Rb6 {[%clk 0:01:11]}  Nf3+ {[%clk 0:00:14]} 39. Kg2 {[%clk 0:01:11]}  g5 {[%clk 0:00:11]} 40. Rxb2 {[%clk 0:01:10]} 1-0


[Site "https://www.chess.com"]

[Event "Titled Tuesday Blitz June 8 2021"]
[White "Spyropoulos, Nikolaos"]
[Black "Harutjunyan, Gevorg"]
[WhiteFideId "4298977"]
[BlackFideId "13300873"]
[WhiteElo "2159"]
[BlackElo "2498"]
[Result "0-1"]
[Round "07"]
[TimeControl "180+1"]
[Date "2021.06.08"]
[WhiteClock "0:00:02"]
[BlackClock "0:00:06"]

1. d4 {[%clk 0:03:00]}  Nf6 {[%clk 0:02:57]} 2. Nf3 {[%clk 0:03:00]}  g6 {[%clk 0:02:58]} 3. Bg5 {[%clk 0:03:00]}  Bg7 {[%clk 0:02:58]} 4. Nbd2 {[%clk 0:03:01]}  d6 {[%clk 0:02:58]} 5. e3 {[%clk 0:02:58]}  O-O {[%clk 0:02:58]} 6. Bc4 {[%clk 0:02:57]}  c5 {[%clk 0:02:53]} 7. c3 {[%clk 0:02:56]}  Qc7 {[%clk 0:02:53]} 8. O-O {[%clk 0:02:54]}  Nc6 {[%clk 0:02:52]} 9. Rc1 {[%clk 0:02:43]}  Rb8 {[%clk 0:02:51]} 10. Qe2 {[%clk 0:02:43]}  a6 {[%clk 0:02:50]} 11. a4 {[%clk 0:02:35]}  Bd7 {[%clk 0:02:49]} 12. b4 {[%clk 0:02:32]}  b5 {[%clk 0:02:35]} 13. axb5 {[%clk 0:02:25]}  axb5 {[%clk 0:02:36]} 14. Bxb5 {[%clk 0:02:05]}  Rxb5 {[%clk 0:02:35]} 15. Qxb5 {[%clk 0:02:06]}  Nxd4 {[%clk 0:02:35]} 16. Qd3 {[%clk 0:02:06]}  Bf5 {[%clk 0:02:26]} 17. e4 {[%clk 0:01:56]}  Nxe4 {[%clk 0:01:36]} 18. Nxd4 {[%clk 0:01:24]}  cxd4 {[%clk 0:01:13]} 19. Nxe4 {[%clk 0:01:24]}  dxc3 {[%clk 0:00:41]} 20. Qe2 {[%clk 0:01:08]}  d5 {[%clk 0:00:36]} 21. Nc5 {[%clk 0:00:34]}  d4 {[%clk 0:00:33]} 22. Qxe7 {[%clk 0:00:29]}  Qb6 {[%clk 0:00:33]} 23. Nd7 {[%clk 0:00:20]}  Bxd7 {[%clk 0:00:25]} 24. Qxd7 {[%clk 0:00:21]}  f6 {[%clk 0:00:20]} 25. Bf4 {[%clk 0:00:19]}  Rd8 {[%clk 0:00:20]} 26. Bc7 {[%clk 0:00:10]}  Rxd7 {[%clk 0:00:19]} 27. Bxb6 {[%clk 0:00:10]}  f5 {[%clk 0:00:20]} 28. Rfd1 {[%clk 0:00:09]}  d3 {[%clk 0:00:20]} 29. Be3 {[%clk 0:00:09]}  h6 {[%clk 0:00:15]} 30. h4 {[%clk 0:00:07]}  Kf7 {[%clk 0:00:14]} 31. b5 {[%clk 0:00:07]}  Ke6 {[%clk 0:00:13]} 32. b6 {[%clk 0:00:07]}  c2 {[%clk 0:00:13]} 33. Rxd3 {[%clk 0:00:03]}  Rxd3 {[%clk 0:00:13]} 34. Rxc2 {[%clk 0:00:04]}  Be5 {[%clk 0:00:11]} 35. Kf1 {[%clk 0:00:02]}  Rb3 {[%clk 0:00:11]} 36. Rc6+ {[%clk 0:00:02]}  Kd5 {[%clk 0:00:09]} 37. Rxg6 {[%clk 0:00:02]}  f4 {[%clk 0:00:09]} 38. Bd2 {[%clk 0:00:02]}  Ke4 {[%clk 0:00:09]} 39. Ke2 {[%clk 0:00:03]}  Rb2 {[%clk 0:00:07]} 40. Kd1 {[%clk 0:00:03]}  Kd3 {[%clk 0:00:06]} 41. Bc1 {[%clk 0:00:02]}  Rxf2 {[%clk 0:00:06]} 42. b7 {[%clk 0:00:02]}  Rf1# {[%clk 0:00:06]} 0-1


[Site "https://www.chess.com"]

[Event "Titled Tuesday Blitz June 8 2021"]
[White "Stepanencu, Nicodim-Cosmin"]
[Black "Starozhilov, Leonid"]
[WhiteFideId "1256220"]
[BlackFideId "14106752"]
[WhiteElo "1704"]
[BlackElo "2414"]
[Result "0-1"]
[Round "07"]
[TimeControl "180+1"]
[Date "2021.06.08"]
[WhiteClock "0:00:03"]
[BlackClock "0:01:34"]

1. e4 {[%clk 0:03:00]}  g6 {[%clk 0:02:59]} 2. d4 {[%clk 0:03:00]}  Bg7 {[%clk 0:03:00]} 3. Nc3 {[%clk 0:03:01]}  d6 {[%clk 0:03:00]} 4. f4 {[%clk 0:03:01]}  Nf6 {[%clk 0:03:00]} 5. Nf3 {[%clk 0:03:01]}  O-O {[%clk 0:03:00]} 6. e5 {[%clk 0:03:02]}  dxe5 {[%clk 0:03:00]} 7. fxe5 {[%clk 0:03:03]}  Nd5 {[%clk 0:03:00]} 8. Bc4 {[%clk 0:03:03]}  Nxc3 {[%clk 0:03:00]} 9. bxc3 {[%clk 0:03:04]}  c5 {[%clk 0:03:00]} 10. O-O {[%clk 0:03:04]}  Bg4 {[%clk 0:02:59]} 11. Be3 {[%clk 0:03:04]}  Nc6 {[%clk 0:02:59]} 12. h3 {[%clk 0:03:03]}  Bxf3 {[%clk 0:02:59]} 13. Qxf3 {[%clk 0:03:04]}  cxd4 {[%clk 0:02:59]} 14. cxd4 {[%clk 0:03:03]}  Nxd4 {[%clk 0:03:00]} 15. Bxf7+ {[%clk 0:02:56]}  Kh8 {[%clk 0:03:00]} 16. Qe4 {[%clk 0:02:52]}  Ne2+ {[%clk 0:02:32]} 17. Kh2 {[%clk 0:02:49]}  Qc7 {[%clk 0:02:32]} 18. g3 {[%clk 0:00:39]}  Nxg3 {[%clk 0:01:52]} 19. Kxg3 {[%clk 0:00:32]}  Qxe5+ {[%clk 0:01:52]} 20. Qf4 {[%clk 0:00:03]}  Qxf4+ {[%clk 0:01:34]} 0-1


[Site "https://www.chess.com"]

[Event "Titled Tuesday Blitz June 8 2021"]
[White "Suarez Gomez, Julio"]
[Black "Rostovtsev, Dmitry"]
[WhiteFideId "22275991"]
[BlackFideId "34278320"]
[WhiteElo "2771"]
[BlackElo "2619"]
[Result "0-1"]
[Round "07"]
[TimeControl "180+1"]
[Date "2021.06.08"]
[WhiteClock "0:00:17"]
[BlackClock "0:00:06"]

1. e4 {[%clk 0:03:00]}  c5 {[%clk 0:02:57]} 2. Nf3 {[%clk 0:03:00]}  d6 {[%clk 0:02:57]} 3. Bb5+ {[%clk 0:02:59]}  Nd7 {[%clk 0:02:57]} 4. d4 {[%clk 0:02:59]}  cxd4 {[%clk 0:02:57]} 5. Qxd4 {[%clk 0:03:00]}  a6 {[%clk 0:02:58]} 6. Be2 {[%clk 0:03:00]}  Ngf6 {[%clk 0:02:58]} 7. O-O {[%clk 0:02:59]}  g6 {[%clk 0:02:59]} 8. Nc3 {[%clk 0:02:58]}  Bg7 {[%clk 0:02:59]} 9. Rd1 {[%clk 0:02:58]}  O-O {[%clk 0:02:59]} 10. e5 {[%clk 0:02:58]}  Nxe5 {[%clk 0:02:44]} 11. Nxe5 {[%clk 0:02:56]}  Nd7 {[%clk 0:02:44]} 12. Nxf7 {[%clk 0:02:37]}  Bxd4 {[%clk 0:02:31]} 13. Nxd8 {[%clk 0:02:27]}  Bxf2+ {[%clk 0:02:30]} 14. Kh1 {[%clk 0:02:24]}  Rxd8 {[%clk 0:02:30]} 15. Nd5 {[%clk 0:02:21]}  Bh4 {[%clk 0:02:27]} 16. Bc4 {[%clk 0:01:28]}  Kh8 {[%clk 0:02:03]} 17. Bf4 {[%clk 0:00:54]}  b5 {[%clk 0:01:55]} 18. Bb3 {[%clk 0:00:54]}  Nc5 {[%clk 0:01:50]} 19. g3 {[%clk 0:00:42]}  Nxb3 {[%clk 0:01:48]} 20. axb3 {[%clk 0:00:42]}  Bf6 {[%clk 0:01:38]} 21. Nxf6 {[%clk 0:00:41]}  exf6 {[%clk 0:01:39]} 22. Rxd6 {[%clk 0:00:41]}  Rxd6 {[%clk 0:01:35]} 23. Bxd6 {[%clk 0:00:42]}  Bb7+ {[%clk 0:01:36]} 24. Kg1 {[%clk 0:00:42]}  Rd8 {[%clk 0:01:36]} 25. Rd1 {[%clk 0:00:41]}  Be4 {[%clk 0:01:27]} 26. c4 {[%clk 0:00:40]}  Kg8 {[%clk 0:01:16]} 27. Rd4 {[%clk 0:00:32]}  Bc6 {[%clk 0:01:13]} 28. Kf2 {[%clk 0:00:29]}  Kf7 {[%clk 0:01:12]} 29. g4 {[%clk 0:00:26]}  Re8 {[%clk 0:01:11]} 30. h3 {[%clk 0:00:23]}  Re4 {[%clk 0:01:05]} 31. Rxe4 {[%clk 0:00:22]}  Bxe4 {[%clk 0:01:06]} 32. Ke3 {[%clk 0:00:23]}  Ke6 {[%clk 0:01:01]} 33. Kxe4 {[%clk 0:00:19]}  Kxd6 {[%clk 0:01:01]} 34. Kd4 {[%clk 0:00:19]}  b4 {[%clk 0:00:59]} 35. h4 {[%clk 0:00:18]}  a5 {[%clk 0:00:36]} 36. Ke4 {[%clk 0:00:18]}  Kc5 {[%clk 0:00:32]} 37. g5 {[%clk 0:00:16]}  f5+ {[%clk 0:00:31]} 38. Ke5 {[%clk 0:00:16]}  a4 {[%clk 0:00:18]} 39. bxa4 {[%clk 0:00:17]}  Kxc4 {[%clk 0:00:18]} 40. b3+ {[%clk 0:00:16]}  Kxb3 {[%clk 0:00:18]} 41. a5 {[%clk 0:00:17]}  Kc2 {[%clk 0:00:11]} 42. a6 {[%clk 0:00:18]}  b3 {[%clk 0:00:12]} 43. a7 {[%clk 0:00:18]}  b2 {[%clk 0:00:13]} 44. a8=Q {[%clk 0:00:18]}  b1=Q {[%clk 0:00:14]} 45. Qc8+ {[%clk 0:00:17]}  Kd2 {[%clk 0:00:13]} 46. Qd7+ {[%clk 0:00:17]}  Qd3 {[%clk 0:00:13]} 47. Qxh7 {[%clk 0:00:17]}  Qe4+ {[%clk 0:00:11]} 48. Kf6 {[%clk 0:00:17]}  f4 {[%clk 0:00:12]} 49. Qxg6 {[%clk 0:00:17]}  Qxg6+ {[%clk 0:00:09]} 50. Kxg6 {[%clk 0:00:18]}  f3 {[%clk 0:00:10]} 51. h5 {[%clk 0:00:18]}  f2 {[%clk 0:00:11]} 52. h6 {[%clk 0:00:19]}  f1=Q {[%clk 0:00:12]} 53. Kg7 {[%clk 0:00:19]}  Qa1+ {[%clk 0:00:10]} 54. Kh7 {[%clk 0:00:19]}  Qa7+ {[%clk 0:00:09]} 55. Kg8 {[%clk 0:00:19]}  Qb8+ {[%clk 0:00:10]} 56. Kg7 {[%clk 0:00:20]}  Qc7+ {[%clk 0:00:11]} 57. Kg6 {[%clk 0:00:20]}  Qd6+ {[%clk 0:00:11]} 58. Kg7 {[%clk 0:00:20]}  Qe7+ {[%clk 0:00:11]} 59. Kh8 {[%clk 0:00:19]}  Qf8+ {[%clk 0:00:09]} 60. Kh7 {[%clk 0:00:19]}  Qf7+ {[%clk 0:00:09]} 61. Kh8 {[%clk 0:00:19]}  Qh5 {[%clk 0:00:08]} 62. h7 {[%clk 0:00:18]}  Qf7 {[%clk 0:00:05]} 63. g6 {[%clk 0:00:17]}  Qf8# {[%clk 0:00:06]} 0-1


[Site "https://www.chess.com"]

[Event "Titled Tuesday Blitz June 8 2021"]
[White "Svane, Frederik"]
[Black "Iskusnyh, Sergei"]
[WhiteFideId "12923044"]
[BlackFideId "4120027"]
[WhiteElo "2459"]
[BlackElo "2492"]
[Result "0-1"]
[Round "07"]
[TimeControl "180+1"]
[Date "2021.06.08"]
[WhiteClock "0:00:07"]
[BlackClock "0:00:19"]

1. e4 {[%clk 0:03:00]}  e6 {[%clk 0:02:59]} 2. d4 {[%clk 0:03:01]}  d5 {[%clk 0:03:00]} 3. Nd2 {[%clk 0:03:01]}  c5 {[%clk 0:02:59]} 4. exd5 {[%clk 0:03:02]}  exd5 {[%clk 0:03:00]} 5. Ngf3 {[%clk 0:03:03]}  Nc6 {[%clk 0:03:00]} 6. Bb5 {[%clk 0:03:03]}  cxd4 {[%clk 0:02:55]} 7. O-O {[%clk 0:03:02]}  Bd6 {[%clk 0:02:54]} 8. Nb3 {[%clk 0:03:01]}  Ne7 {[%clk 0:02:54]} 9. Nbxd4 {[%clk 0:03:01]}  O-O {[%clk 0:02:54]} 10. h3 {[%clk 0:02:52]}  Bc7 {[%clk 0:02:51]} 11. c3 {[%clk 0:02:34]}  Qd6 {[%clk 0:02:45]} 12. Ne2 {[%clk 0:02:28]}  Ng6 {[%clk 0:02:38]} 13. Re1 {[%clk 0:02:26]}  Bf5 {[%clk 0:02:27]} 14. Ng3 {[%clk 0:02:22]}  Bd7 {[%clk 0:02:18]} 15. Bf1 {[%clk 0:02:23]}  Rfe8 {[%clk 0:02:14]} 16. Be3 {[%clk 0:02:21]}  Rad8 {[%clk 0:01:59]} 17. Qd2 {[%clk 0:02:20]}  Bc8 {[%clk 0:01:53]} 18. Rad1 {[%clk 0:02:19]}  a6 {[%clk 0:01:32]} 19. Bg5 {[%clk 0:02:19]}  f6 {[%clk 0:01:22]} 20. Rxe8+ {[%clk 0:02:12]}  Rxe8 {[%clk 0:01:22]} 21. Be3 {[%clk 0:02:13]}  Be6 {[%clk 0:01:16]} 22. Be2 {[%clk 0:02:02]}  Rd8 {[%clk 0:01:07]} 23. Nd4 {[%clk 0:02:00]}  Nxd4 {[%clk 0:01:01]} 24. Qxd4 {[%clk 0:02:01]}  Ne5 {[%clk 0:00:46]} 25. Qc5 {[%clk 0:01:46]}  Qxc5 {[%clk 0:00:39]} 26. Bxc5 {[%clk 0:01:46]}  Nc4 {[%clk 0:00:39]} 27. Bxc4 {[%clk 0:01:33]}  dxc4 {[%clk 0:00:38]} 28. Rxd8+ {[%clk 0:01:33]}  Bxd8 {[%clk 0:00:38]} 29. Kf1 {[%clk 0:01:28]}  Bc7 {[%clk 0:00:37]} 30. Ne2 {[%clk 0:01:28]}  Bf5 {[%clk 0:00:36]} 31. Ke1 {[%clk 0:01:26]}  Kf7 {[%clk 0:00:35]} 32. Be3 {[%clk 0:01:26]}  Be4 {[%clk 0:00:35]} 33. g3 {[%clk 0:01:22]}  g5 {[%clk 0:00:34]} 34. f4 {[%clk 0:01:14]}  h6 {[%clk 0:00:32]} 35. Kf2 {[%clk 0:01:14]}  Ke6 {[%clk 0:00:31]} 36. Nd4+ {[%clk 0:01:14]}  Kd5 {[%clk 0:00:31]} 37. fxg5 {[%clk 0:01:14]}  fxg5 {[%clk 0:00:30]} 38. h4 {[%clk 0:01:14]}  gxh4 {[%clk 0:00:30]} 39. gxh4 {[%clk 0:01:15]}  h5 {[%clk 0:00:30]} 40. Ne2 {[%clk 0:01:15]}  Bf5 {[%clk 0:00:28]} 41. Bf4 {[%clk 0:01:11]}  Bd8 {[%clk 0:00:28]} 42. Bg5 {[%clk 0:01:07]}  Bc7 {[%clk 0:00:28]} 43. Bf4 {[%clk 0:01:07]}  Bb6+ {[%clk 0:00:28]} 44. Be3 {[%clk 0:00:55]}  Bc7 {[%clk 0:00:29]} 45. Nd4 {[%clk 0:00:51]}  Bg4 {[%clk 0:00:27]} 46. Bg5 {[%clk 0:00:49]}  Ke4 {[%clk 0:00:27]} 47. Nc2 {[%clk 0:00:47]}  Bd6 {[%clk 0:00:26]} 48. Kg2 {[%clk 0:00:43]}  b5 {[%clk 0:00:26]} 49. Ne3 {[%clk 0:00:41]}  Be2 {[%clk 0:00:24]} 50. Kf2 {[%clk 0:00:40]}  Bd3 {[%clk 0:00:22]} 51. Kg2 {[%clk 0:00:31]}  b4 {[%clk 0:00:22]} 52. Nd1 {[%clk 0:00:27]}  a5 {[%clk 0:00:21]} 53. Nf2+ {[%clk 0:00:27]}  Kd5 {[%clk 0:00:20]} 54. Kf3 {[%clk 0:00:26]}  Bf5 {[%clk 0:00:20]} 55. Ke2 {[%clk 0:00:24]}  b3 {[%clk 0:00:20]} 56. axb3 {[%clk 0:00:19]}  cxb3 {[%clk 0:00:20]} 57. Nd1 {[%clk 0:00:19]}  a4 {[%clk 0:00:20]} 58. Ne3+ {[%clk 0:00:19]}  Ke4 {[%clk 0:00:20]} 59. Nc4 {[%clk 0:00:19]}  Bg4+ {[%clk 0:00:20]} 60. Kd2 {[%clk 0:00:15]}  Bc7 {[%clk 0:00:21]} 61. Be3 {[%clk 0:00:10]}  Kf3 {[%clk 0:00:20]} 62. Bb6 {[%clk 0:00:10]}  Bb8 {[%clk 0:00:19]} 63. Bd8 {[%clk 0:00:09]}  Bf4+ {[%clk 0:00:19]} 64. Kd1 {[%clk 0:00:09]}  Bf5 {[%clk 0:00:19]} 65. Nd2+ {[%clk 0:00:06]}  Kf2 {[%clk 0:00:19]} 66. Nc4 {[%clk 0:00:07]}  Bc2# {[%clk 0:00:19]} 0-1


[Site "https://www.chess.com"]

[Event "Titled Tuesday Blitz June 8 2021"]
[White "Tanenbaum, Zachary"]
[Black "Ambartsumova, Karina"]
[WhiteFideId "2060850"]
[BlackFideId "4166299"]
[WhiteElo "2165"]
[BlackElo "2262"]
[Result "1-0"]
[Round "07"]
[TimeControl "180+1"]
[Date "2021.06.08"]
[WhiteClock "0:00:11"]
[BlackClock "0:00:03"]

1. e4 {[%clk 0:02:52]}  c5 {[%clk 0:02:59]} 2. Nf3 {[%clk 0:02:52]}  e6 {[%clk 0:03:00]} 3. d4 {[%clk 0:02:52]}  cxd4 {[%clk 0:03:01]} 4. Nxd4 {[%clk 0:02:53]}  a6 {[%clk 0:03:01]} 5. Bd3 {[%clk 0:02:52]}  Bc5 {[%clk 0:03:01]} 6. Nb3 {[%clk 0:02:52]}  Ba7 {[%clk 0:03:01]} 7. O-O {[%clk 0:02:51]}  Nc6 {[%clk 0:02:53]} 8. Qg4 {[%clk 0:02:49]}  Nf6 {[%clk 0:02:53]} 9. Qxg7 {[%clk 0:02:48]}  Rg8 {[%clk 0:02:50]} 10. Qh6 {[%clk 0:02:48]}  Rg6 {[%clk 0:02:37]} 11. Qh4 {[%clk 0:02:18]}  Ne5 {[%clk 0:02:03]} 12. Qf4 {[%clk 0:01:26]}  Rg4 {[%clk 0:01:50]} 13. Qxe5 {[%clk 0:01:01]}  Bb8 {[%clk 0:01:36]} 14. Qc5 {[%clk 0:00:35]}  b6 {[%clk 0:01:07]} 15. Qe3 {[%clk 0:00:29]}  Rh4 {[%clk 0:00:35]} 16. h3 {[%clk 0:00:24]}  h6 {[%clk 0:00:25]} 17. Nc3 {[%clk 0:00:23]}  Ng4 {[%clk 0:00:24]} 18. Qe2 {[%clk 0:00:15]}  Qc7 {[%clk 0:00:19]} 19. f4 {[%clk 0:00:15]}  Nf6 {[%clk 0:00:13]} 20. Be3 {[%clk 0:00:14]}  Bb7 {[%clk 0:00:11]} 21. Qf2 {[%clk 0:00:13]}  Rh5 {[%clk 0:00:11]} 22. Rae1 {[%clk 0:00:12]}  b5 {[%clk 0:00:10]} 23. e5 {[%clk 0:00:10]}  Nd5 {[%clk 0:00:10]} 24. Ne4 {[%clk 0:00:09]}  Nxe3 {[%clk 0:00:09]} 25. Nf6+ {[%clk 0:00:10]}  Kf8 {[%clk 0:00:08]} 26. Rxe3 {[%clk 0:00:11]}  Ba7 {[%clk 0:00:06]} 27. Nxh5 {[%clk 0:00:10]}  Bxe3 {[%clk 0:00:05]} 28. Qxe3 {[%clk 0:00:11]}  Qc6 {[%clk 0:00:06]} 29. Qg3 {[%clk 0:00:10]}  Ke7 {[%clk 0:00:06]} 30. Nf6 {[%clk 0:00:10]}  h5 {[%clk 0:00:04]} 31. Be4 {[%clk 0:00:10]}  Qb6+ {[%clk 0:00:04]} 32. Qf2 {[%clk 0:00:10]}  Qxf2+ {[%clk 0:00:03]} 33. Rxf2 {[%clk 0:00:11]} 1-0


[Site "https://www.chess.com"]